bitfinex/quotes_SOLUSD_20220119
["timestamp","ask_amount","ask_price","bid_price","bid_amount"]
[1642620104958,48.88906983,136.78,136.65,19.944]
[1642620105156,49.13906983,136.78,136.65,19.944]
[1642620105357,48.88906983,136.78,136.66,73.31]
[1642620105557,2.924,136.82,136.68,73.31]
[1642620105763,2.925,136.84,136.69,13.684]
[1642620105964,2.924,136.85,136.7,46.5938]
[1642620106163,2.924,136.86,136.71,19.434]
[1642620106359,2.924,136.86,136.71,19.684]
[1642620106564,48.26786289,136.85,136.72,25.06411334]
[1642620106760,48.51786289,136.85,136.73,10.76]
[1642620106958,48.51786289,136.85,136.73,16.76]
[1642620107261,48.51786289,136.85,136.73,17.02]
[1642620108062,6.0,136.84,136.73,17.02]
[1642620108361,6.0,136.84,136.73,16.76]
[1642620108761,0.25,136.83,136.73,16.76]
[1642620109061,3.174,136.83,136.73,16.76]
[1642620110063,0.25,136.83,136.74,2.924]
[1642620110261,0.25,136.83,136.75,10.51]
[1642620110463,3.174,136.83,136.75,10.51]
[1642620111263,3.174,136.83,136.72,33.6162]
[1642620111464,3.174,136.83,136.73,0.25]
[1642620112765,3.174,136.83,136.74,10.51]
[1642620112965,0.25,136.83,136.74,10.51]
[1642620113168,0.25,136.83,136.75,0.25]
[1642620114769,6.25,136.83,136.75,0.25]
[1642620116272,2.924,136.84,136.75,0.25]
[1642620116473,2.924,136.88,136.76,10.51]
[1642620116673,2.923,136.91,136.77,0.25]
[1642620116873,76.233,136.91,136.78,13.433]
[1642620117273,73.31,136.89,136.78,13.433]
[1642620117474,2.923,136.88,136.78,13.433]
[1642620117673,3.173,136.88,136.78,13.433]
[1642620118878,1.82712602,136.87,136.78,2.923]
[1642620119075,13.433,136.86,136.78,2.923]
[1642620119274,20.28,136.86,136.78,2.923]
[1642620119674,20.28,136.86,136.71,10.51]
[1642620119875,47.76553448,136.85,136.69,10.51]
[1642620120075,47.76553448,136.85,136.66,72.8626]
[1642620120076,2.924,136.84,136.7,10.51]
[1642620120275,2.924,136.84,136.71,22.9946]
[1642620120677,2.924,136.84,136.72,0.25]
[1642620121678,76.234,136.84,136.72,0.25]
[1642620123481,73.31,136.82,136.71,48.7155]
[1642620123681,2.924,136.81,136.72,0.25]
[1642620124281,38.79420096,136.8,136.72,0.25]
[1642620125323,38.79420096,136.8,136.71,45.7915]
[1642620125514,38.79420096,136.8,136.7,10.51]
[1642620125715,76.234,136.79,136.7,10.51]
[1642620126917,2.924,136.79,136.7,10.51]
[1642620127117,0.25,136.78,136.7,10.51]
[1642620129820,0.25,136.78,136.71,0.25]
[1642620130020,0.25,136.78,136.71,10.76]
[1642620130222,0.25,136.79,136.71,10.76]
[1642620132022,2.31865899,136.79,136.71,10.76]
[1642620132522,2.06865899,136.79,136.71,10.76]
[1642620133327,2.06865899,136.79,136.72,6.0]
[1642620133522,2.06865899,136.81,136.73,10.51]
[1642620133724,2.06865899,136.82,136.73,10.76]
[1642620133924,2.06865899,136.83,136.73,10.76]
[1642620134127,2.06865899,136.83,136.74,35.29696453]
[1642620134324,2.06865899,136.84,136.75,10.76]
[1642620134524,2.06865899,136.84,136.76,8.924]
[1642620134725,2.06865899,136.85,136.77,10.76]
[1642620134925,2.06865899,136.85,136.78,2.923]
[1642620135126,2.06865899,136.86,136.79,10.51]
[1642620135426,2.06865899,136.87,136.8,7.16287507]
[1642620135626,2.06865899,136.88,136.8,29.01887507]
[1642620135865,2.06865899,136.88,136.81,0.25]
[1642620136025,2.06865899,136.88,136.82,2.923]
[1642620136226,2.06865899,136.88,136.83,0.25]
[1642620136426,2.06865899,136.88,136.82,2.923]
[1642620136628,2.06865899,136.88,136.8,16.51]
[1642620136825,2.06865899,136.87,136.81,0.25]
[1642620137425,0.25,136.86,136.8,16.51]
[1642620138027,2.31865899,136.86,136.8,16.51]
[1642620138228,2.06865899,136.86,136.8,16.51]
[1642620138628,45.41354835,136.85,136.8,16.51]
[1642620139426,2.06865899,136.86,136.8,16.51]
[1642620140030,2.06865899,136.86,136.8,10.51]
[1642620140228,2.06865899,136.86,136.81,0.25]
[1642620140829,38.96102691,136.87,136.8,10.51]
[1642620141231,2.31865899,136.86,136.77,57.6321]
[1642620141431,5.24165899,136.86,136.79,6.0]
[1642620141632,5.24165899,136.86,136.77,57.6321]
[1642620141633,5.24165899,136.86,136.78,6.25]
[1642620142534,3.173,136.86,136.78,6.25]
[1642620142735,3.173,136.86,136.79,10.51]
[1642620142933,0.25,136.86,136.79,18.686]
[1642620143132,0.25,136.86,136.8,0.25]
[1642620143365,2.06865899,136.88,136.8,0.25]
[1642620143533,0.25,136.87,136.8,0.25]
[1642620144437,2.06865899,136.88,136.8,0.25]
[1642620144643,2.06865899,136.89,136.81,2.923]
[1642620145036,2.06865899,136.89,136.82,0.25]
[1642620145237,2.06865899,136.89,136.83,2.922]
[1642620145438,2.06865899,136.89,136.82,1.4412335]
[1642620146041,44.38142426,136.91,136.82,1.4412335]
[1642620146042,2.06865899,136.9,136.82,1.4412335]
[1642620146240,2.06865899,136.9,136.83,2.922]
[1642620146539,2.06865899,136.9,136.83,7.971]
[1642620147339,2.06865899,136.9,136.84,0.25]
[1642620147939,46.45008325,136.91,136.84,0.25]
[1642620148341,46.45008325,136.91,136.83,2.922]
[1642620148539,8.06865899,136.9,136.83,2.922]
[1642620148740,2.06865899,136.89,136.83,2.922]
[1642620149543,8.06865899,136.9,136.83,2.922]
[1642620149741,8.06865899,136.9,136.81,24.7131]
[1642620149941,8.06865899,136.9,136.82,0.25]
[1642620150143,2.06865899,136.89,136.82,0.25]
[1642620150941,2.06865899,136.89,136.81,24.7131]
[1642620151145,2.06865899,136.89,136.75,13.432]
[1642620151146,2.922,136.88,136.75,13.432]
[1642620151444,2.06865899,136.87,136.75,10.51]
[1642620151745,4.99165899,136.86,136.75,10.51]
[1642620151944,4.99165899,136.86,136.76,24.73659886]
[1642620152244,2.06865899,136.88,136.77,0.25]
[1642620152442,2.06865899,136.88,136.78,10.51]
[1642620152641,2.06865899,136.88,136.79,2.923]
[1642620152842,2.06865899,136.88,136.79,0.25]
[1642620153250,42.9817657,136.88,136.79,0.25]
[1642620153442,0.25,136.87,136.79,0.25]
[1642620154044,0.25,136.87,136.77,50.3067]
[1642620154446,2.31865899,136.87,136.78,0.25]
[1642620154644,8.31865899,136.87,136.78,0.25]
[1642620155044,8.31865899,136.87,136.77,50.3067]
[1642620155245,6.81878501,136.86,136.74,2.923]
[1642620155445,2.06865899,136.85,136.73,35.2778]
[1642620155646,2.06865899,136.85,136.74,0.25]
[1642620155647,2.924,136.84,136.74,0.25]
[1642620155851,4.75112602,136.84,136.74,0.25]
[1642620156045,44.50566294,136.83,136.74,0.25]
[1642620156946,46.57432193,136.83,136.74,0.25]
[1642620157649,119.88432193,136.83,136.73,33.1255965]
[1642620157848,121.71144795,136.83,136.71,59.7702]
[1642620158048,4.99265899,136.82,136.71,59.7702]
[1642620158850,4.99265899,136.82,136.72,21.8684034]
[1642620159048,4.99265899,136.82,136.72,22.1184034]
[1642620160748,0.25,136.81,136.72,22.1184034]
[1642620161350,0.25,136.81,136.72,0.25]
[1642620161551,79.56,136.81,136.72,0.25]
[1642620161752,81.62865899,136.81,136.72,0.25]
[1642620166658,83.45578501,136.81,136.71,46.3372]
[1642620166859,4.99265899,136.8,136.69,2.924]
[1642620167058,73.31,136.79,136.68,2.924]
[1642620167258,73.31,136.79,136.66,2.924]
[1642620167259,4.99265899,136.78,136.66,2.924]
[1642620167459,73.31,136.77,136.66,2.924]
[1642620167660,115.48997984,136.76,136.66,27.3975413]
[1642620168260,115.48997984,136.76,136.67,0.25]
[1642620170470,6.0,136.75,136.67,0.25]
[1642620170868,0.25,136.74,136.67,0.25]
[1642620171271,0.25,136.74,136.66,27.3975413]
[1642620172573,0.25,136.74,136.67,0.25]
[1642620172874,2.926,136.79,136.67,6.25]
[1642620173174,51.26267989,136.79,136.68,24.765]
[1642620173402,0.25,136.78,136.68,24.765]
[1642620173596,0.25,136.78,136.69,0.25]
[1642620177701,6.25,136.78,136.69,0.25]
[1642620177901,73.31,136.77,136.69,0.25]
[1642620178103,76.234,136.77,136.68,27.689]
[1642620178301,76.234,136.77,136.68,2.924]
[1642620178504,78.06112602,136.77,136.68,2.924]
[1642620179703,80.12978501,136.77,136.68,2.924]
[1642620180702,0.25,136.76,136.68,2.924]
[1642620180907,2.924,136.75,136.65,33.8155]
[1642620181107,38.81067939,136.74,136.66,0.25]
[1642620181305,44.81067939,136.74,136.66,0.25]
[1642620181505,44.81067939,136.74,136.65,33.8155]
[1642620181706,46.63780541,136.74,136.65,23.3055]
[1642620181904,57.14780541,136.74,136.65,23.3055]
[1642620182107,57.14780541,136.74,136.63,2.924]
[1642620182406,1.38075295,136.72,136.59,2.00881018]
[1642620182707,2.927,136.71,136.6,6.0]
[1642620182905,4.75412602,136.71,136.6,6.0]
[1642620183306,73.31,136.7,136.59,6.0]
[1642620183508,48.95779553,136.69,136.59,6.25]
[1642620184108,48.95779553,136.69,136.6,1.5285084]
[1642620184308,46.03079553,136.69,136.61,0.25]
[1642620184707,1.38075295,136.72,136.61,0.25]
[1642620184908,1.38075295,136.72,136.62,2.926]
[1642620185207,1.38075295,136.72,136.63,0.25]
[1642620185809,41.91648302,136.71,136.63,24.5428]
[1642620186408,41.91648302,136.71,136.63,24.2928]
[1642620186610,6.0,136.7,136.63,24.2928]
[1642620187011,6.0,136.7,136.64,0.25]
[1642620187211,0.25,136.69,136.64,0.25]
[1642620187411,0.25,136.69,136.63,24.2928]
[1642620187812,0.25,136.69,136.64,0.25]
[1642620189415,6.0,136.7,136.64,0.25]
[1642620189616,6.0,136.7,136.63,24.2928]
[1642620189815,6.0,136.7,136.64,0.25]
[1642620192417,6.0,136.7,136.63,27.2188]
[1642620192618,2.926,136.69,136.62,24.9825]
[1642620192820,2.926,136.69,136.57,15.44481018]
[1642620193021,2.926,136.69,136.58,6.0]
[1642620193818,2.926,136.69,136.59,0.25]
[1642620194220,2.927,136.7,136.59,0.25]
[1642620194421,41.91648302,136.71,136.59,12.07030848]
[1642620194623,41.91648302,136.71,136.6,6.0]
[1642620194821,6.0,136.7,136.61,33.6212]
[1642620195620,6.0,136.7,136.61,33.3712]
[1642620196020,2.927,136.69,136.61,33.3712]
[1642620196222,6.0,136.7,136.62,0.25]
[1642620197021,0.25,136.69,136.61,22.8612]
[1642620197222,8.927,136.7,136.61,22.8612]
[1642620197422,6.0,136.7,136.61,22.8612]
[1642620198224,6.0,136.7,136.6,23.2819]
[1642620198525,2.927,136.69,136.59,2.927]
[1642620198724,3.177,136.69,136.59,2.927]
[1642620199729,3.177,136.69,136.55,10.51]
[1642620199730,1.82712602,136.68,136.55,10.51]
[1642620200025,2.927,136.67,136.56,23.7026]
[1642620200225,36.3394352,136.66,136.56,23.7026]
[1642620200424,2.928,136.65,136.56,23.7026]
[1642620201625,2.928,136.65,136.57,0.25]
[1642620201827,36.3394352,136.66,136.57,0.25]
[1642620202025,36.3394352,136.66,136.56,23.7026]
[1642620202626,6.0,136.65,136.56,23.7026]
[1642620202924,8.928,136.65,136.56,23.7026]
[1642620203126,15.859,136.65,136.56,23.7026]
[1642620203326,1.82712602,136.64,136.54,25.4483]
[1642620203527,2.928,136.63,136.54,25.4483]
[1642620204730,2.928,136.63,136.54,2.927]
[1642620204929,0.25,136.62,136.54,2.927]
[1642620205130,2.928,136.61,136.52,22.7096]
[1642620205430,35.05601792,136.6,136.52,22.7096]
[1642620209561,0.25,136.59,136.52,22.7096]
[1642620209760,6.25,136.59,136.52,22.7096]
[1642620215568,0.25,136.59,136.52,22.7096]
[1642620218671,0.25,136.59,136.53,0.25]
[1642620218874,0.25,136.59,136.52,22.7096]
[1642620221676,10.8669,136.61,136.53,5.54122864]
[1642620221874,10.8669,136.61,136.53,16.05122864]
[1642620222076,10.7318,136.65,136.54,2.928]
[1642620222278,10.7318,136.65,136.55,25.231]
[1642620222476,10.7318,136.65,136.55,24.981]
[1642620222678,44.79047596,136.64,136.56,0.25]
[1642620223276,44.79047596,136.64,136.55,24.981]
[1642620223477,47.71847596,136.64,136.55,24.981]
[1642620223677,49.54560198,136.64,136.55,24.981]
[1642620224075,47.71847596,136.64,136.55,24.981]
[1642620224479,44.79047596,136.64,136.56,0.25]
[1642620225378,0.25,136.63,136.56,0.25]
[1642620226016,0.25,136.63,136.55,24.981]
[1642620226218,3.178,136.63,136.55,24.981]
[1642620227012,6.0,136.62,136.55,24.981]
[1642620228916,2.928,136.63,136.55,24.981]
[1642620229117,44.79047596,136.64,136.55,24.981]
[1642620229515,6.0,136.63,136.55,24.981]
[1642620229719,8.928,136.63,136.55,24.981]
[1642620230327,10.75512602,136.63,136.55,24.981]
[1642620230521,10.75512602,136.63,136.53,23.4167]
[1642620231421,12.82378501,136.63,136.53,23.4167]
[1642620232322,10.99665899,136.63,136.53,23.4167]
[1642620232521,0.25,136.62,136.53,23.4167]
[1642620232724,2.928,136.61,136.53,23.4167]
[1642620233122,6.0,136.63,136.54,0.25]
[1642620233923,6.0,136.63,136.53,25.42551018]
[1642620234123,2.928,136.62,136.53,25.42551018]
[1642620234323,3.178,136.62,136.53,23.4167]
[1642620234523,0.25,136.62,136.53,23.4167]
[1642620235525,0.25,136.62,136.53,25.42551018]
[1642620235726,0.25,136.62,136.54,23.5772]
[1642620236329,0.25,136.62,136.54,23.3272]
[1642620236928,3.178,136.62,136.54,23.3272]
[1642620238030,6.0,136.61,136.54,23.3272]
[1642620238526,6.0,136.62,136.54,23.3272]
[1642620239327,60.29713495,136.64,136.54,23.3272]
[1642620239529,2.06865899,136.63,136.53,23.4167]
[1642620239728,2.928,136.62,136.53,23.4167]
[1642620240929,2.928,136.63,136.53,25.42551018]
[1642620241530,2.928,136.63,136.54,24.043]
[1642620241730,2.928,136.63,136.54,32.89079644]
[1642620241931,2.928,136.63,136.54,40.22460662]
[1642620242729,44.79047596,136.64,136.54,40.22460662]
[1642620242931,0.25,136.63,136.54,31.62681018]
[1642620243131,0.25,136.63,136.54,26.30181018]
[1642620244029,6.25,136.63,136.54,26.30181018]
[1642620244235,6.25,136.63,136.54,26.05181018]
[1642620244431,8.07712602,136.63,136.53,25.42551018]
[1642620244660,2.928,136.62,136.53,23.4167]
[1642620245631,2.928,136.62,136.53,25.42551018]
[1642620246032,8.928,136.63,136.54,22.5832]
[1642620246634,0.25,136.62,136.54,22.5832]
[1642620246838,2.928,136.61,136.54,22.5832]
[1642620248134,3.178,136.62,136.54,22.5832]
[1642620249436,0.25,136.62,136.54,22.5832]
[1642620254966,2.07712602,136.62,136.53,23.4167]
[1642620255165,2.928,136.61,136.53,23.4167]
[1642620255667,76.238,136.61,136.53,23.4167]
[1642620255864,76.238,136.61,136.5,25.42341018]
[1642620256067,78.30665899,136.61,136.51,6.0]
[1642620256267,4.99665899,136.61,136.51,6.0]
[1642620256465,2.928,136.61,136.51,6.0]
[1642620256664,2.928,136.61,136.52,24.8919]
[1642620258467,6.0,136.6,136.52,24.8919]
[1642620258666,45.18814453,136.59,136.52,24.8919]
[1642620259266,0.25,136.58,136.52,24.8919]
[1642620260871,45.18814453,136.59,136.52,24.8919]
[1642620263477,0.25,136.58,136.52,24.8919]
[1642620264273,6.25,136.58,136.52,24.8919]
[1642620265273,6.25,136.58,136.51,6.0]
[1642620266475,9.178,136.58,136.51,6.0]
[1642620266875,45.18814453,136.59,136.52,0.25]
[1642620267276,45.18814453,136.59,136.51,32.86631018]
[1642620267678,45.18814453,136.59,136.51,30.8575]
[1642620268281,45.18814453,136.59,136.52,0.25]
[1642620268683,0.25,136.58,136.52,0.25]
[1642620269080,45.18814453,136.59,136.52,0.25]
[1642620269683,45.18814453,136.59,136.52,2.25881018]
[1642620271485,45.18814453,136.59,136.52,0.25]
[1642620271884,45.18814453,136.59,136.51,43.37631018]
[1642620272282,45.18814453,136.59,136.52,0.25]
[1642620273285,45.18814453,136.59,136.52,2.25881018]
[1642620274985,45.18814453,136.59,136.52,2.00881018]
[1642620275586,45.18814453,136.59,136.51,43.37631018]
[1642620276785,45.18814453,136.59,136.52,2.00881018]
[1642620277188,45.18814453,136.59,136.53,0.25]
[1642620278614,45.18814453,136.59,136.53,2.25881018]
[1642620281816,45.18814453,136.59,136.53,0.25]
[1642620282018,1.47947462,136.61,136.53,0.25]
[1642620282220,2.928,136.63,136.53,2.25881018]
[1642620282420,13.22055899,136.65,136.54,13.438]
[1642620282619,11.1519,136.65,136.55,2.00881018]
[1642620282820,2.06865899,136.66,136.56,0.25]
[1642620283021,40.52204939,136.66,136.56,17.63620137]
[1642620283221,2.06865899,136.67,136.56,26.82420137]
[1642620283424,2.06865899,136.67,136.56,28.83301155]
[1642620283622,83.97993807,136.69,136.57,2.00881018]
[1642620283623,86.04859706,136.69,136.57,2.00881018]
[1642620283822,86.04859706,136.69,136.58,15.69581018]
[1642620284026,86.04859706,136.69,136.58,21.69581018]
[1642620284322,2.06865899,136.72,136.61,23.73663823]
[1642620284523,2.06865899,136.73,136.62,107.0371]
[1642620284723,2.06865899,136.75,136.62,113.5471]
[1642620285121,2.06865899,136.75,136.62,40.2371]
[1642620285322,38.59167531,136.74,136.62,40.2371]
[1642620285523,41.51767531,136.74,136.63,2.926]
[1642620285726,0.25,136.73,136.64,0.25]
[1642620285932,0.25,136.73,136.62,42.9031]
[1642620286127,9.176,136.73,136.62,39.9771]
[1642620287329,9.176,136.73,136.62,39.7271]
[1642620287930,11.24465899,136.73,136.62,33.7271]
[1642620288330,1.82712602,136.72,136.62,33.7271]
[1642620288531,2.926,136.71,136.6,23.1975]
[1642620288831,1.82712602,136.7,136.6,23.1975]
[1642620289035,35.65014983,136.69,136.6,23.1975]
[1642620289231,2.927,136.68,136.6,23.1975]
[1642620290435,38.57714983,136.69,136.61,0.25]
[1642620290635,35.65014983,136.69,136.61,0.25]
[1642620291037,35.65014983,136.69,136.6,23.1975]
[1642620292134,35.65014983,136.69,136.61,0.25]
[1642620292735,0.25,136.68,136.61,0.25]
[1642620293336,35.65014983,136.69,136.61,0.25]
[1642620294241,35.65014983,136.69,136.61,23.3881]
[1642620294738,0.25,136.68,136.61,23.3881]
[1642620295338,35.65014983,136.69,136.61,23.3881]
[1642620295538,35.65014983,136.69,136.62,10.51]
[1642620295741,4.99565899,136.74,136.63,0.25]
[1642620295940,4.99565899,136.74,136.63,22.7975]
[1642620296140,6.0,136.73,136.63,28.6485]
[1642620296341,6.0,136.73,136.63,102.2185]
[1642620296744,40.65540313,136.72,136.63,28.6485]
[1642620296941,40.65540313,136.72,136.64,10.51]
[1642620297341,40.65540313,136.72,136.65,0.25]
[1642620297541,40.65540313,136.72,136.64,10.51]
[1642620297542,0.25,136.71,136.64,10.51]
[1642620298141,0.25,136.71,136.65,0.25]
[1642620299445,0.25,136.71,136.64,10.51]
[1642620302049,0.25,136.71,136.63,22.5475]
[1642620302050,2.07712602,136.71,136.63,22.5475]
[1642620302247,2.926,136.7,136.63,22.5475]
[1642620302646,4.75312602,136.7,136.6,23.1975]
[1642620302848,1.82712602,136.7,136.6,23.1975]
[1642620303048,2.927,136.69,136.6,23.1975]
[1642620305151,2.927,136.7,136.6,25.55017145]
[1642620305351,2.927,136.7,136.61,33.4036]
[1642620305550,6.0,136.69,136.61,33.4036]
[1642620305751,6.0,136.69,136.62,0.25]
[1642620305965,40.65540313,136.72,136.62,0.25]
[1642620306150,6.0,136.71,136.62,0.25]
[1642620306550,0.25,136.7,136.62,0.25]
[1642620308651,6.0,136.71,136.62,0.25]
[1642620308852,6.0,136.71,136.63,2.926]
[1642620309052,6.0,136.71,136.63,13.436]
[1642620309253,6.0,136.71,136.64,0.25]
[1642620309457,2.06865899,136.73,136.64,0.25]
[1642620309656,2.06865899,136.73,136.64,24.3686]
[1642620309861,2.926,136.75,136.64,24.3686]
[1642620309862,2.06865899,136.74,136.64,24.3686]
[1642620310059,2.06865899,136.74,136.65,2.926]
[1642620310258,2.06865899,136.75,136.65,2.926]
[1642620310457,49.14169171,136.74,136.65,2.926]
[1642620310657,47.07303272,136.74,136.66,23.2333]
[1642620311256,49.14169171,136.74,136.66,23.2333]
[1642620312180,49.14169171,136.74,136.67,0.25]
[1642620312581,2.06865899,136.74,136.67,0.25]
[1642620312783,2.06865899,136.74,136.67,3.176]
[1642620312981,2.06865899,136.76,136.67,3.176]
[1642620313183,2.06865899,136.76,136.67,13.686]
[1642620314383,2.06865899,136.76,136.67,37.9453]
[1642620315087,37.08217594,136.77,136.67,37.9453]
[1642620315383,2.06865899,136.77,136.67,37.9453]
[1642620315585,2.06865899,136.77,136.67,38.2053]
[1642620315786,2.06865899,136.78,136.67,38.2053]
[1642620316284,2.06865899,136.78,136.67,111.5153]
[1642620316485,2.06865899,136.78,136.67,37.9453]
[1642620316486,44.04421095,136.77,136.67,37.9453]
[1642620316687,0.25,136.76,136.67,37.9453]
[1642620317489,0.25,136.76,136.67,35.0193]
[1642620322595,0.25,136.76,136.67,34.7693]
[1642620322795,2.31865899,136.76,136.67,34.7693]
[1642620324196,0.25,136.76,136.68,0.25]
[1642620324396,2.31865899,136.76,136.68,10.76]
[1642620326099,0.25,136.76,136.68,10.76]
[1642620330107,0.25,136.76,136.69,24.4983]
[1642620330507,2.31865899,136.76,136.69,24.4983]
[1642620331839,2.06865899,136.76,136.7,0.25]
[1642620332040,2.06865899,136.78,136.7,0.25]
[1642620332844,0.25,136.77,136.7,0.25]
[1642620335745,2.31865899,136.77,136.7,0.25]
[1642620336344,2.31865899,136.77,136.69,27.4223]
[1642620336547,2.06865899,136.76,136.7,0.25]
[1642620337746,2.31865899,136.77,136.7,0.25]
[1642620338746,2.06865899,136.76,136.7,0.25]
[1642620343550,2.06865899,136.75,136.7,0.25]
[1642620343951,2.06865899,136.76,136.7,0.25]
[1642620344351,2.06865899,136.75,136.7,0.25]
[1642620345355,2.06865899,136.76,136.7,0.25]
[1642620350157,2.06865899,136.76,136.7,10.76]
[1642620350557,2.06865899,136.76,136.7,11.02]
[1642620350968,2.06865899,136.77,136.7,11.02]
[1642620354060,2.06865899,136.77,136.71,1.07901953]
[1642620354262,2.06865899,136.77,136.72,0.25]
[1642620355963,2.06865899,136.78,136.73,83.82]
[1642620356167,2.06865899,136.79,136.74,0.25]
[1642620356363,2.06865899,136.8,136.74,0.25]
[1642620356562,2.06865899,136.8,136.75,13.434]
[1642620356766,2.06865899,136.81,136.76,22.73945195]
[1642620357490,2.06865899,136.81,136.76,46.14855195]
[1642620358091,2.06865899,136.82,136.76,46.14855195]
[1642620358694,2.06865899,136.82,136.76,23.6591]
[1642620359092,2.06865899,136.82,136.76,23.4091]
[1642620359292,50.13689763,136.84,136.75,13.434]
[1642620359293,2.06865899,136.8,136.75,10.51]
[1642620359493,2.06865899,136.8,136.76,0.25]
[1642620360295,2.06865899,136.8,136.75,10.51]
[1642620360496,40.25844052,136.79,136.76,0.25]
[1642620360697,40.25844052,136.79,136.75,10.51]
[1642620361397,40.25844052,136.79,136.72,33.8035]
[1642620361600,42.32709951,136.79,136.73,0.25]
[1642620361798,2.06865899,136.78,136.73,0.25]
[1642620362597,2.06865899,136.78,136.72,23.2935]
[1642620364000,2.06865899,136.78,136.73,0.25]
[1642620364812,2.06865899,136.79,136.73,0.25]
[1642620365015,2.06865899,136.8,136.73,0.25]
[1642620365816,51.52009519,136.8,136.73,0.25]
[1642620367618,2.06865899,136.79,136.73,0.25]
[1642620368318,49.4514362,136.8,136.73,0.25]
[1642620368319,51.52009519,136.8,136.73,0.25]
[1642620368518,51.52009519,136.8,136.73,3.174]
[1642620368718,2.06865899,136.79,136.73,3.174]
[1642620368922,2.06865899,136.79,136.73,0.25]
[1642620370923,2.06865899,136.79,136.72,33.8035]
[1642620371121,2.06865899,136.79,136.72,23.2935]
[1642620371325,2.06865899,136.78,136.72,23.2935]
[1642620371922,6.0,136.77,136.72,23.2935]
[1642620373023,6.0,136.77,136.7,35.1142]
[1642620373226,6.0,136.77,136.71,0.25]
[1642620373627,8.06865899,136.77,136.71,0.25]
[1642620373927,2.06865899,136.77,136.71,0.25]
[1642620374129,6.0,136.76,136.71,0.25]
[1642620374326,40.454554,136.75,136.71,23.3382]
[1642620377554,0.99042917,136.74,136.71,23.3382]
[1642620378255,0.99042917,136.74,136.71,23.0882]
[1642620379756,0.99042917,136.74,136.72,0.25]
[1642620381259,0.99042917,136.74,136.71,23.0882]
[1642620381458,6.06439994,136.73,136.71,23.0882]
[1642620381658,6.06439994,136.73,136.7,10.51]
[1642620381862,6.06439994,136.73,136.71,0.25]
[1642620382459,6.06439994,136.73,136.7,10.51]
[1642620382659,7.05304086,136.73,136.7,10.51]
[1642620383260,7.05304086,136.73,136.67,26.2954]
[1642620383459,7.05304086,136.73,136.65,10.51]
[1642620383659,9.12169985,136.73,136.65,10.51]
[1642620383859,7.05304086,136.73,136.65,10.51]
[1642620384058,9.12169985,136.73,136.65,10.51]
[1642620384860,82.43169985,136.73,136.65,10.51]
[1642620385063,85.35769985,136.73,136.65,10.51]
[1642620385461,85.35769985,136.73,136.64,23.792]
[1642620386062,85.35769985,136.73,136.61,13.436]
[1642620386264,85.35769985,136.73,136.64,0.25]
[1642620386863,0.25,136.72,136.64,0.25]
[1642620387263,0.25,136.72,136.63,0.25]
[1642620387764,1.2368524,136.72,136.63,0.25]
[1642620388366,0.9868524,136.72,136.63,0.25]
[1642620388564,0.9868524,136.72,136.63,3.176]
[1642620388765,6.9868524,136.72,136.64,29.72526527]
[1642620388965,0.9868524,136.72,136.65,2.926]
[1642620389164,0.9868524,136.72,136.65,3.176]